[Event "Championnat du monde jeunes U12F"]
[Date "2024.11.23"]
[White "Ivanova, Gabriela"]
[Black "Prokofieva, Alexandra"]
[WhiteElo "1680"]
[BlackElo "1467"]
[Round "8.39"]
[Result "0-1"]
[TimeControl "5400+30"]

1. d4 {[%clk 1:30:53]} 1... d5 {[%clk 1:29:53]} 2. Nf3 {[%clk 1:30:54]} 2... Nf6
{[%clk 1:29:54]} 3. g3 {[%clk 1:30:43]} 3... g6 {[%clk 1:29:53]} 4. Bg2 {[%clk
1:31:00]} 4... Bg7 {[%clk 1:29:59]} 5. c4 {[%clk 1:31:05]} 5... c6 {[%clk
1:29:27]} 6. O-O {[%clk 1:31:15]} 6... dxc4 {[%clk 1:28:48]} 7. Nbd2 {[%clk
1:31:22]} 7... b5 {[%clk 1:28:31]} 8. a4 {[%clk 1:29:24]} 8... Ba6 {[%clk
1:26:01]} 9. axb5 {[%clk 1:28:34]} 9... Bxb5 {[%clk 1:25:25]} 10. Qc2 {[%clk
1:28:15]} 10... c3 {[%clk 1:22:02]} 11. bxc3 {[%clk 1:26:05]} 11... Bxe2 {[%clk
1:21:45]} 12. Re1 {[%clk 1:26:21]} 12... Bxf3 {[%clk 1:18:18]} 13. Nxf3 {[%clk
1:25:59]} 13... O-O {[%clk 1:18:01]} 14. Ne5 {[%clk 1:25:54]} 14... Qc8 {[%clk
1:10:48]} 15. Nc4 {[%clk 1:22:35]} 15... e6 {[%clk 1:07:06]} 16. Nb6 {[%clk
1:22:04]} 16... axb6 {[%clk 1:05:25]} 17. Rxa8 {[%clk 1:22:21]} 17... Qb7 {[%clk
1:04:59]} 18. Ra1 {[%clk 1:21:48]} 18... Nbd7 {[%clk 1:00:36]} 19. Qa4 {[%clk
1:16:13]} 19... b5 {[%clk 0:50:00]} 20. Qa7 {[%clk 1:15:27]} 20... Qxa7 {[%clk
0:49:53]} 21. Rxa7 {[%clk 1:15:46]} 21... Rc8 {[%clk 0:48:39]} 22. Bf4 {[%clk
1:13:56]} 22... h5 {[%clk 0:43:49]} 23. Rea1 {[%clk 1:12:59]} 23... c5 {[%clk
0:37:55]} 24. Ra8 {[%clk 1:12:45]} 24... Rxa8 {[%clk 0:38:08]} 25. Rxa8+ {[%clk
1:13:09]} 25... Kh7 {[%clk 0:38:15]} 26. dxc5 {[%clk 1:12:44]} 26... Nxc5 {[%clk
0:38:04]} 27. Ra5 {[%clk 1:12:58]} 27... Nfe4 {[%clk 0:36:59]} 28. Rxb5 {[%clk
1:11:42]} 28... Bxc3 {[%clk 0:36:08]} 29. f3 {[%clk 1:10:20]} 29... Bd4+ {[%clk
0:35:23]} 30. Kf1 {[%clk 1:10:20]} 30... Nc3 {[%clk 0:33:45]} 31. Bd6 {[%clk
1:07:38]} 31... Nxb5 {[%clk 0:33:49]} 32. Bxc5 {[%clk 1:07:27]} 32... Bxc5
{[%clk 0:34:03]} 33. Ke2 {[%clk 1:07:45]} 33... f5 {[%clk 0:32:46]} 34. Kd3
{[%clk 1:07:55]} 34... Bg1 {[%clk 0:30:15]} 35. h3 {[%clk 1:08:05]} 35... Bh2
{[%clk 0:28:51]} 36. g4 {[%clk 1:08:22]} 36... fxg4 {[%clk 0:28:57]} 37. hxg4
{[%clk 1:08:04]} 37... hxg4 {[%clk 0:29:17]} 38. fxg4 {[%clk 1:08:27]} 38... Kh6
{[%clk 0:28:46]} 39. Bc6 {[%clk 1:07:48]} 39... Nd6 {[%clk 0:27:00]} 40. Bd7
{[%clk 1:07:55]} 40... e5 {[%clk 0:26:31]} 41. Ke3 {[%clk 1:07:28]} 41... Bf4+
{[%clk 0:24:03]} 42. Kf3 {[%clk 1:07:40]} 42... Kg5 {[%clk 0:22:49]} 43. Ke2
{[%clk 1:06:44]} 43... e4 {[%clk 0:21:36]} 44. Kf2 {[%clk 1:06:23]} 44... e3+
{[%clk 0:19:50]} 45. Ke2 {[%clk 1:06:35]} 45... Ne4 {[%clk 0:19:05]} 46. Kf3
{[%clk 1:03:23]} 46... Nc3 {[%clk 0:16:35]} 0-1

[Variant "Standard"]
[Site "Europe Echecs"]

[Event "Championnat du monde jeunes U12F"]
[Date "2024.11.23"]
[White "Li, Yeeshuen"]
[Black "Jung, Minju"]
[WhiteElo "1546"]
[BlackElo "1457"]
[Round "8.41"]
[Result "1-0"]
[TimeControl "5400+30"]

1. e4 {[%clk 1:30:58]} 1... e5 {[%clk 1:30:38]} 2. Nf3 {[%clk 1:31:18]} 2... Nc6
{[%clk 1:30:26]} 3. Bc4 {[%clk 1:31:39]} 3... Bc5 {[%clk 1:30:13]} 4. O-O {[%clk
1:30:11]} 4... Nf6 {[%clk 1:29:44]} 5. d4 {[%clk 1:29:24]} 5... Bxd4 {[%clk
1:28:18]} 6. Nxd4 {[%clk 1:29:44]} 6... Nxd4 {[%clk 1:27:31]} 7. Bg5 {[%clk
1:29:56]} 7... h6 {[%clk 1:25:03]} 8. Bh4 {[%clk 1:30:18]} 8... d6 {[%clk
1:22:21]} 9. f4 {[%clk 1:29:22]} 9... Bg4 {[%clk 1:17:53]} 10. Bxf6 {[%clk
1:27:52]} 10... Bxd1 {[%clk 1:16:17]} 11. Bxd8 {[%clk 1:27:39]} 11... Nxc2
{[%clk 1:12:32]} 12. Bxc7 {[%clk 1:25:19]} 12... Nxa1 {[%clk 1:08:40]} 13. Rxd1
{[%clk 1:24:05]} 13... Rc8 {[%clk 1:01:45]} 14. Bb5+ {[%clk 1:23:35]} 14... Kf8
{[%clk 1:00:16]} 15. Bxd6+ {[%clk 1:23:53]} 15... Kg8 {[%clk 1:00:10]} 16. Nc3
{[%clk 1:18:50]} 16... Nc2 {[%clk 0:54:31]} 17. Nd5 {[%clk 1:17:26]} 17... Kh7
{[%clk 0:50:11]} 18. Bxe5 {[%clk 1:14:08]} 18... Rc5 {[%clk 0:34:24]} 19. Bd3
{[%clk 1:12:20]} 19... a5 {[%clk 0:28:32]} 20. Rc1 {[%clk 1:06:28]} 20... Rhc8
{[%clk 0:26:14]} 21. Bc7 {[%clk 1:05:16]} 21... Kh8 {[%clk 0:22:15]} 22. Rxc2
{[%clk 1:04:17]} 22... Rxc2 {[%clk 0:19:30]} 23. Bxc2 {[%clk 1:04:40]} 23... g6
{[%clk 0:18:49]} 24. Be5+ {[%clk 1:04:02]} 24... Kh7 {[%clk 0:18:39]} 25. Bb3
{[%clk 1:03:28]} 25... b5 {[%clk 0:17:11]} 26. Ne7 {[%clk 1:01:56]} 26... Rc1+
{[%clk 0:15:45]} 27. Kf2 {[%clk 1:02:17]} 27... f5 {[%clk 0:15:44]} 28. Bf7
{[%clk 1:02:13]} 28... Rc2+ {[%clk 0:15:23]} 29. Kg3 {[%clk 1:02:33]} 29... h5
{[%clk 0:15:30]} 30. Bxg6+ {[%clk 1:02:52]} 30... Kh6 {[%clk 0:15:51]} 31. exf5
{[%clk 1:02:43]} 31... h4+ {[%clk 0:15:43]} 32. Kxh4 {[%clk 1:03:04]} 32... Rxg2
{[%clk 0:15:54]} 33. Ng8# 1-0

[Variant "Standard"]
[Site "Europe Echecs"]

[Event "Championnat du monde jeunes U12F"]
[Date "2024.11.23"]
[White "Groselj, Mirjam"]
[Black "Petrusic, Dusica"]
[WhiteElo "1470"]
[BlackElo "1498"]
[Round "8.43"]
[Result "0-1"]
[TimeControl "5400+30"]

1. e4 {[%clk 1:30:02]} 1... e5 {[%clk 1:30:54]} 2. Nf3 {[%clk 1:30:14]} 2... Nc6
{[%clk 1:31:13]} 3. Bc4 {[%clk 1:30:21]} 3... Bc5 {[%clk 1:31:30]} 4. c3 {[%clk
1:30:25]} 4... Nf6 {[%clk 1:31:49]} 5. d3 {[%clk 1:30:35]} 5... h6 {[%clk
1:31:58]} 6. O-O {[%clk 1:30:16]} 6... O-O {[%clk 1:32:19]} 7. Be3 {[%clk
1:29:49]} 7... Bb6 {[%clk 1:32:29]} 8. Nbd2 {[%clk 1:28:55]} 8... d6 {[%clk
1:31:11]} 9. h3 {[%clk 1:28:14]} 9... Ne7 {[%clk 1:27:19]} 10. Re1 {[%clk
1:25:42]} 10... Ng6 {[%clk 1:26:05]} 11. Nf1 {[%clk 1:23:38]} 11... Be6 {[%clk
1:24:12]} 12. Bb3 {[%clk 1:20:29]} 12... Qd7 {[%clk 1:21:05]} 13. Bxe6 {[%clk
1:18:15]} 13... fxe6 {[%clk 1:21:13]} 14. Ng3 {[%clk 1:17:34]} 14... Bxe3 {[%clk
1:19:30]} 15. fxe3 {[%clk 1:14:16]} 15... d5 {[%clk 1:13:15]} 16. exd5 {[%clk
1:12:28]} 16... exd5 {[%clk 1:13:22]} 17. e4 {[%clk 1:09:36]} 17... Rae8 {[%clk
1:06:00]} 18. exd5 {[%clk 1:04:21]} 18... Nxd5 {[%clk 1:04:19]} 19. Ne4 {[%clk
1:01:46]} 19... Ndf4 {[%clk 0:59:34]} 20. d4 {[%clk 0:57:48]} 20... exd4 {[%clk
0:56:36]} 21. Nxd4 {[%clk 0:56:40]} 21... Qd5 {[%clk 0:53:41]} 22. Qb3 {[%clk
0:54:15]} 22... Qxb3 {[%clk 0:53:05]} 23. Nxb3 {[%clk 0:49:46]} 23... Nh4 {[%clk
0:48:44]} 24. g3 {[%clk 0:45:58]} 24... Nf3+ {[%clk 0:48:19]} 25. Kf2 {[%clk
0:44:06]} 25... Nd3+ {[%clk 0:46:06]} 26. Kg2 {[%clk 0:43:08]} 26... Nfxe1+
{[%clk 0:46:02]} 0-1

[Variant "Standard"]
[Site "Europe Echecs"]

[Event "Championnat du monde jeunes U12F"]
[Date "2024.11.23"]
[White "Liu, Lillian Yu-Ning"]
[Black "Canossa, Elena"]
[WhiteElo "1456"]
[BlackElo "1482"]
[Round "8.44"]
[Result "1/2-1/2"]
[TimeControl "5400+30"]

1. e4 {[%clk 1:30:58]} 1... e5 {[%clk 1:30:49]} 2. Nc3 {[%clk 1:31:22]} 2... Bc5
{[%clk 1:31:05]} 3. Nf3 {[%clk 1:31:29]} 3... d6 {[%clk 1:31:22]} 4. h3 {[%clk
1:31:49]} 4... Nc6 {[%clk 1:31:19]} 5. Bc4 {[%clk 1:32:07]} 5... Nf6 {[%clk
1:30:04]} 6. d3 {[%clk 1:32:02]} 6... h6 {[%clk 1:29:37]} 7. O-O {[%clk
1:32:13]} 7... O-O {[%clk 1:29:44]} 8. Be3 {[%clk 1:32:06]} 8... Bb6 {[%clk
1:10:42]} 9. Bxb6 {[%clk 1:32:19]} 9... axb6 {[%clk 1:10:47]} 10. d4 {[%clk
1:32:19]} 10... exd4 {[%clk 1:10:49]} 11. Nxd4 {[%clk 1:32:39]} 11... Ne5 {[%clk
1:09:47]} 12. Bb3 {[%clk 1:32:39]} 12... Qe7 {[%clk 0:51:32]} 13. Nf3 {[%clk
1:31:41]} 13... Nxf3+ {[%clk 0:47:09]} 14. Qxf3 {[%clk 1:32:00]} 14... Re8
{[%clk 0:46:25]} 15. Nd5 {[%clk 1:30:47]} 15... Nxd5 {[%clk 0:42:06]} 16. Bxd5
{[%clk 1:31:02]} 16... c6 {[%clk 0:41:01]} 17. Bb3 {[%clk 1:30:33]} 17... Be6
{[%clk 0:40:39]} 18. Rfe1 {[%clk 1:30:01]} 18... Bxb3 {[%clk 0:38:38]} 19. Qxb3
{[%clk 1:30:13]} 19... b5 {[%clk 0:36:28]} 20. Qd3 {[%clk 1:21:26]} 20... Ra4
{[%clk 0:31:17]} 21. Qd1 {[%clk 1:30:30]} 1/2-1/2

[Variant "Standard"]
[Site "Europe Echecs"]

[Event "Championnat du monde jeunes U12F"]
[Date "2024.11.24"]
[White "Venskaya, Nika"]
[Black "Xue, Tianhao"]
[WhiteElo "1871"]
[BlackElo "1835"]
[Round "9.1"]
[Result "0-1"]
[TimeControl "5400+30"]

1. d4 {[%clk 1:30:57]} 1... Nf6 {[%clk 1:30:55]} 2. Nf3 {[%clk 1:31:19]} 2... d5
{[%clk 1:31:21]} 3. g3 {[%clk 1:31:42]} 3... e6 {[%clk 1:31:42]} 4. Bg2 {[%clk
1:32:06]} 4... b5 {[%clk 1:32:04]} 5. O-O {[%clk 1:31:13]} 5... c5 {[%clk
1:31:19]} 6. c3 {[%clk 1:29:01]} 6... Be7 {[%clk 1:30:24]} 7. a4 {[%clk
1:28:58]} 7... Qb6 {[%clk 1:28:20]} 8. dxc5 {[%clk 1:19:40]} 8... Bxc5 {[%clk
1:27:49]} 9. b4 {[%clk 1:18:53]} 9... Be7 {[%clk 1:23:15]} 10. Be3 {[%clk
1:18:35]} 10... Qb7 {[%clk 1:20:29]} 11. axb5 {[%clk 1:14:54]} 11... Nbd7 {[%clk
1:19:19]} 12. Qd4 {[%clk 0:41:47]} 12... Qxb5 {[%clk 1:14:30]} 13. Ra5 {[%clk
0:28:13]} 13... Qc6 {[%clk 1:08:34]} 14. Ne5 {[%clk 0:21:44]} 14... Nxe5 {[%clk
1:07:11]} 15. Qxe5 {[%clk 0:22:03]} 15... a6 {[%clk 1:06:51]} 16. Qd4 {[%clk
0:18:28]} 16... Rb8 {[%clk 1:03:01]} 17. Nd2 {[%clk 0:17:48]} 17... O-O {[%clk
1:01:08]} 18. Bf4 {[%clk 0:14:45]} 18... Rb5 {[%clk 0:58:32]} 19. Rfa1 {[%clk
0:11:15]} 19... Rxa5 {[%clk 0:58:08]} 20. Rxa5 {[%clk 0:11:25]} 20... Bd8 {[%clk
0:48:54]} 21. Ra3 {[%clk 0:07:10]} 21... Nd7 {[%clk 0:45:45]} 22. Qd3 {[%clk
0:06:36]} 22... Bf6 {[%clk 0:43:31]} 23. e4 {[%clk 0:06:30]} 23... Nb6 {[%clk
0:41:21]} 24. e5 {[%clk 0:03:16]} 24... Be7 {[%clk 0:41:36]} 25. Be3 {[%clk
0:03:05]} 25... Bb7 {[%clk 0:39:06]} 26. Bd4 {[%clk 0:02:30]} 26... Rc8 {[%clk
0:37:16]} 27. Qe3 {[%clk 0:02:06]} 27... Bd8 {[%clk 0:31:35]} 28. Bf3 {[%clk
0:01:00]} 28... h6 {[%clk 0:28:49]} 29. Bg2 {[%clk 0:00:44]} 29... Na8 {[%clk
0:25:01]} 30. Bf1 {[%clk 0:00:41]} 30... Bb6 {[%clk 0:20:46]} 31. Bg2 {[%clk
0:00:37]} 31... Bxd4 {[%clk 0:20:37]} 32. Qxd4 {[%clk 0:01:01]} 32... Nb6 {[%clk
0:20:28]} 33. Ra5 {[%clk 0:00:38]} 33... Qxc3 {[%clk 0:12:58]} 34. Qxb6 {[%clk
0:00:46]} 34... Qxd2 {[%clk 0:12:56]} 35. Qxb7 {[%clk 0:00:48]} 35... Rc1+
{[%clk 0:13:13]} 36. Bf1 {[%clk 0:01:15]} 36... Rc2 {[%clk 0:10:15]} 37. Qb6
{[%clk 0:00:31]} 37... d4 {[%clk 0:10:33]} 38. Be2 {[%clk 0:00:31]} 38... Qxe2
{[%clk 0:08:46]} 39. Qxd4 {[%clk 0:00:36]} 39... Rd2 {[%clk 0:08:39]} 40. Qf4
{[%clk 0:00:46]} 40... Rd1+ {[%clk 0:08:57]} 41. Kg2 {[%clk 0:01:13]} 41... Qf1+
{[%clk 0:09:19]} 42. Kf3 {[%clk 0:01:39]} 42... Rd3+ {[%clk 0:08:57]} 43. Kg4
{[%clk 0:02:05]} 43... g5 {[%clk 0:06:27]} 44. Qe4 {[%clk 0:01:15]} 44... Rd2
{[%clk 0:04:07]} 45. Qa8+ {[%clk 0:00:32]} 45... Kg7 {[%clk 0:04:24]} 46. Ra3
{[%clk 0:00:31]} 46... Rd4+ {[%clk 0:04:10]} 47. f4 {[%clk 0:00:53]} 47... Qe2+
{[%clk 0:02:41]} 48. Qf3 {[%clk 0:00:32]} 48... Qxh2 {[%clk 0:02:39]} 49. Qe3
{[%clk 0:00:32]} 49... Rxb4 {[%clk 0:01:34]} 50. Qe1 {[%clk 0:00:33]} 50... a5
{[%clk 0:01:30]} 51. Rxa5 {[%clk 0:00:31]} 51... Rxf4+ {[%clk 0:01:41]} 52. gxf4
{[%clk 0:00:51]} 52... Qg2+ {[%clk 0:02:08]} 53. Qg3 {[%clk 0:00:38]} 53... h5+
{[%clk 0:02:33]} 54. Kxg5 {[%clk 0:00:53]} 54... Qxg3+ {[%clk 0:02:56]} 55. Kxh5
{[%clk 0:01:19]} 55... Qxf4 {[%clk 0:03:20]} 56. Rb5 {[%clk 0:01:17]} 56... Qf3+
{[%clk 0:03:37]} 57. Kg5 {[%clk 0:01:27]} 57... f6+ {[%clk 0:04:01]} 58. exf6+
{[%clk 0:01:53]} 58... Qxf6+ {[%clk 0:04:26]} 59. Kh5 {[%clk 0:02:17]} 59...
Qf3+ {[%clk 0:04:53]} 60. Kg5 {[%clk 0:02:30]} 60... Qe3+ {[%clk 0:05:17]} 0-1

[Variant "Standard"]
[Site "Europe Echecs"]

[Event "Championnat du monde jeunes U12F"]
[Date "2024.11.24"]
[White "Mozolevskaya, Tatyana Nik"]
[Black "Amanzhol, Khanzada"]
[WhiteElo "1775"]
[BlackElo "1780"]
[Round "9.2"]
[Result "0-1"]
[TimeControl "5400+30"]

1. c4 {[%clk 1:30:56]} 1... Nf6 {[%clk 1:30:54]} 2. Nf3 {[%clk 1:31:18]} 2... e6
{[%clk 1:31:13]} 3. g3 {[%clk 1:31:44]} 3... d5 {[%clk 1:30:29]} 4. Bg2 {[%clk
1:32:08]} 4... Be7 {[%clk 1:30:52]} 5. O-O {[%clk 1:32:35]} 5... O-O {[%clk
1:31:15]} 6. d4 {[%clk 1:33:01]} 6... Nc6 {[%clk 1:31:39]} 7. Ne5 {[%clk
1:12:17]} 7... dxc4 {[%clk 1:31:28]} 8. Nxc6 {[%clk 1:00:46]} 8... bxc6 {[%clk
1:31:45]} 9. Qa4 {[%clk 0:59:24]} 9... Qxd4 {[%clk 1:27:26]} 10. Rd1 {[%clk
0:59:00]} 10... Qb6 {[%clk 1:27:19]} 11. Qxc4 {[%clk 0:51:46]} 11... Bc5 {[%clk
1:20:59]} 12. e3 {[%clk 0:50:22]} 12... Nd5 {[%clk 1:18:58]} 13. Bd2 {[%clk
0:47:17]} 13... Ba6 {[%clk 1:06:53]} 14. Qc2 {[%clk 0:47:05]} 14... Rfd8 {[%clk
1:05:26]} 15. a3 {[%clk 0:45:24]} 15... Bd3 {[%clk 0:58:04]} 16. Qc1 {[%clk
0:41:52]} 16... Qb3 {[%clk 0:55:08]} 17. Ba5 {[%clk 0:30:04]} 17... Be2 {[%clk
0:40:28]} 18. Re1 {[%clk 0:24:17]} 18... Qb5 {[%clk 0:32:54]} 19. b4 {[%clk
0:18:56]} 19... Be7 {[%clk 0:17:15]} 20. Bxd5 {[%clk 0:17:48]} 20... Bf6 {[%clk
0:14:36]} 21. Ra2 {[%clk 0:14:49]} 21... Rxd5 {[%clk 0:13:01]} 22. Rexe2 {[%clk
0:14:45]} 22... Rh5 {[%clk 0:11:27]} 23. Rec2 {[%clk 0:13:12]} 23... Qf5 {[%clk
0:10:05]} 24. Rc5 {[%clk 0:12:28]} 24... e5 {[%clk 0:09:53]} 25. Nd2 {[%clk
0:12:52]} 25... Rd8 {[%clk 0:06:23]} 26. Nf1 {[%clk 0:12:32]} 26... Qf3 {[%clk
0:05:02]} 27. Rd2 {[%clk 0:12:44]} 27... Rxd2 {[%clk 0:04:46]} 28. Nxd2 {[%clk
0:09:35]} 28... Qe2 {[%clk 0:04:22]} 29. Nf1 {[%clk 0:09:10]} 29... Rf5 {[%clk
0:04:33]} 30. Qc2 {[%clk 0:09:21]} 30... Qg4 {[%clk 0:03:07]} 31. b5 {[%clk
0:05:55]} 31... h5 {[%clk 0:02:50]} 32. Rc4 {[%clk 0:05:30]} 32... Qf3 {[%clk
0:01:42]} 33. Be1 {[%clk 0:05:46]} 33... g6 {[%clk 0:01:20]} 34. Nd2 {[%clk
0:04:08]} 34... Qe2 {[%clk 0:01:33]} 35. Qc1 {[%clk 0:04:35]} 35... h4 {[%clk
0:01:39]} 36. Ne4 {[%clk 0:04:38]} 36... h3 {[%clk 0:01:42]} 37. Nxf6+ {[%clk
0:04:59]} 37... Rxf6 {[%clk 0:02:07]} 38. Rh4 {[%clk 0:05:20]} 38... Rd6 {[%clk
0:02:13]} 0-1

[Variant "Standard"]
[Site "Europe Echecs"]

[Event "Championnat du monde jeunes U12F"]
[Date "2024.11.24"]
[White "Hanya Shah"]
[Black "Allahverdi, Zahra"]
[WhiteElo "1888"]
[BlackElo "1718"]
[Round "9.3"]
[Result "1-0"]
[TimeControl "5400+30"]

1. c4 {[%clk 1:30:54]} 1... c5 {[%clk 1:30:48]} 2. Nc3 {[%clk 1:31:16]} 2... Nf6
{[%clk 1:31:11]} 3. Nf3 {[%clk 1:31:39]} 3... d5 {[%clk 1:30:31]} 4. cxd5 {[%clk
1:31:47]} 4... Nxd5 {[%clk 1:30:54]} 5. g3 {[%clk 1:26:28]} 5... Nc7 {[%clk
1:28:44]} 6. Bg2 {[%clk 1:26:45]} 6... Nc6 7. d3 {[%clk 1:25:41]} 7... e5 {[%clk
1:28:36]} 8. O-O {[%clk 1:18:25]} 8... Be7 {[%clk 1:28:03]} 9. Be3 {[%clk
1:16:08]} 9... Bd7 {[%clk 1:25:14]} 10. Nd2 {[%clk 1:11:15]} 10... O-O {[%clk
1:21:28]} 11. Rc1 {[%clk 1:05:52]} 11... Rb8 {[%clk 1:11:50]} 12. f4 {[%clk
1:02:13]} 12... exf4 {[%clk 1:08:01]} 13. Bxf4 {[%clk 1:01:05]} 13... Bg5 {[%clk
1:03:10]} 14. Bd6 {[%clk 0:55:05]} 14... Be7 {[%clk 1:01:35]} 15. Bf4 {[%clk
0:52:25]} 15... Ne6 {[%clk 0:52:25]} 16. Bxb8 {[%clk 0:49:48]} 16... Qxb8 {[%clk
0:52:27]} 17. e3 {[%clk 0:49:34]} 17... Ne5 {[%clk 0:48:32]} 18. Nd5 {[%clk
0:42:17]} 18... Bd8 {[%clk 0:47:31]} 19. Nc4 {[%clk 0:39:22]} 19... b5 {[%clk
0:43:26]} 20. Nxe5 {[%clk 0:35:45]} 20... Qxe5 {[%clk 0:43:29]} 21. Rf2 {[%clk
0:31:18]} 21... Bc6 {[%clk 0:41:02]} 22. Nf4 {[%clk 0:24:23]} 22... Bxg2 {[%clk
0:36:55]} 23. Nxe6 {[%clk 0:23:52]} 23... Qxe6 {[%clk 0:37:01]} 24. Kxg2 {[%clk
0:23:49]} 24... Qxe3 {[%clk 0:36:37]} 25. Rcc2 {[%clk 0:23:58]} 25... Qd4 {[%clk
0:35:52]} 26. Qf3 {[%clk 0:21:51]} 26... Bb6 {[%clk 0:35:16]} 27. Rce2 {[%clk
0:19:17]} 27... Qd6 {[%clk 0:33:24]} 28. Re8 {[%clk 0:15:30]} 28... g6 29. Re4
1-0

[Variant "Standard"]
[Site "Europe Echecs"]

[Event "Championnat du monde jeunes U12F"]
[Date "2024.11.24"]
[White "Jordan, Christina"]
[Black "Buyankhishig, Batpelden"]
[WhiteElo "1803"]
[BlackElo "1867"]
[Round "9.4"]
[Result "0-1"]
[TimeControl "5400+30"]

1. e4 {[%clk 1:30:57]} 1... e5 {[%clk 1:29:31]} 2. Nf3 {[%clk 1:31:21]} 2... Nc6
{[%clk 1:29:08]} 3. Bb5 {[%clk 1:31:31]} 3... a6 {[%clk 1:29:23]} 4. Ba4 {[%clk
1:31:55]} 4... Nf6 {[%clk 1:29:10]} 5. O-O {[%clk 1:32:15]} 5... Be7 {[%clk
1:29:24]} 6. Re1 {[%clk 1:32:37]} 6... b5 {[%clk 1:29:41]} 7. Bb3 {[%clk
1:33:01]} 7... d6 {[%clk 1:29:52]} 8. c3 {[%clk 1:33:09]} 8... O-O {[%clk
1:30:01]} 9. h3 {[%clk 1:33:28]} 9... Nb8 {[%clk 1:29:43]} 10. d4 {[%clk
1:33:17]} 10... Nbd7 {[%clk 1:29:42]} 11. Nbd2 {[%clk 1:33:19]} 11... Bb7 {[%clk
1:29:47]} 12. Bc2 {[%clk 1:33:31]} 12... Re8 {[%clk 1:29:51]} 13. Nf1 {[%clk
1:33:39]} 13... Bf8 {[%clk 1:29:49]} 14. Ng3 {[%clk 1:33:39]} 14... g6 {[%clk
1:29:53]} 15. a4 {[%clk 1:33:26]} 15... c5 {[%clk 1:29:16]} 16. d5 {[%clk
1:29:57]} 16... c4 {[%clk 1:28:30]} 17. Bg5 {[%clk 1:24:35]} 17... h6 {[%clk
1:27:53]} 18. Be3 {[%clk 1:24:24]} 18... Qc7 {[%clk 1:26:47]} 19. Nh2 {[%clk
1:19:43]} 19... h5 {[%clk 1:23:35]} 20. f4 {[%clk 1:06:36]} 20... exf4 {[%clk
1:20:36]} 21. Bxf4 {[%clk 1:06:59]} 21... Bg7 {[%clk 1:11:30]} 22. Nf3 {[%clk
1:03:38]} 22... Nc5 {[%clk 1:08:57]} 23. Nd4 {[%clk 0:54:46]} 23... h4 {[%clk
1:00:01]} 24. Nf1 {[%clk 0:54:43]} 24... Ncxe4 {[%clk 0:56:40]} 25. Bxe4 {[%clk
0:51:12]} 25... Nxe4 {[%clk 0:50:36]} 26. axb5 {[%clk 0:49:56]} 26... axb5
{[%clk 0:49:40]} 27. Nxb5 {[%clk 0:48:53]} 27... Qb6+ {[%clk 0:48:52]} 28. Nd4
{[%clk 0:49:13]} 28... Rxa1 {[%clk 0:42:34]} 29. Qxa1 {[%clk 0:49:38]} 29...
Bxd4+ {[%clk 0:42:13]} 30. cxd4 {[%clk 0:50:01]} 30... Qxd4+ {[%clk 0:42:36]}
31. Be3 {[%clk 0:49:42]} 31... Qxd5 {[%clk 0:42:38]} 32. Re2 {[%clk 0:45:34]}
32... Ng3 {[%clk 0:39:06]} 33. Rd2 {[%clk 0:44:34]} 33... Qe4 {[%clk 0:39:04]}
34. Bb6 {[%clk 0:42:22]} 34... Ne2+ {[%clk 0:39:20]} 35. Rxe2 {[%clk 0:42:46]}
35... Qxe2 {[%clk 0:39:46]} 36. Bf2 {[%clk 0:43:01]} 36... Qd3 {[%clk 0:37:24]}
37. Qa7 {[%clk 0:41:13]} 37... Qd5 {[%clk 0:37:42]} 38. Ne3 {[%clk 0:40:58]}
38... Rxe3 {[%clk 0:38:01]} 0-1

[Variant "Standard"]
[Site "Europe Echecs"]

[Event "Championnat du monde jeunes U12F"]
[Date "2024.11.24"]
[White "Siddhi Rao"]
[Black "Pratitee Bordoloi"]
[WhiteElo "1677"]
[BlackElo "1929"]
[Round "9.5"]
[Result "0-1"]
[TimeControl "5400+30"]

1. e4 {[%clk 1:30:59]} 1... c6 {[%clk 1:30:54]} 2. Nf3 {[%clk 1:31:24]} 2... d5
{[%clk 1:31:13]} 3. d3 {[%clk 1:31:49]} 3... Bg4 {[%clk 1:31:03]} 4. h3 {[%clk
1:32:12]} 4... Bxf3 {[%clk 1:31:10]} 5. Qxf3 {[%clk 1:32:32]} 5... e6 {[%clk
1:31:21]} 6. g3 {[%clk 1:32:54]} 6... Nf6 {[%clk 1:31:01]} 7. Bg2 {[%clk
1:30:55]} 7... Be7 {[%clk 1:30:18]} 8. Qe2 {[%clk 1:29:31]} 8... c5 {[%clk
1:28:52]} 9. Nd2 {[%clk 1:22:07]} 9... Nc6 {[%clk 1:27:49]} 10. c3 {[%clk
1:21:45]} 10... Qc7 {[%clk 1:22:23]} 11. O-O {[%clk 1:16:11]} 11... h6 {[%clk
1:19:28]} 12. a4 {[%clk 1:10:56]} 12... O-O-O {[%clk 1:11:44]} 13. Nb3 {[%clk
0:51:28]} 13... g5 {[%clk 0:59:47]} 14. a5 {[%clk 0:48:25]} 14... dxe4 {[%clk
0:44:36]} 15. dxe4 {[%clk 0:48:16]} 15... Nd7 {[%clk 0:44:26]} 16. Be3 {[%clk
0:45:49]} 16... h5 {[%clk 0:34:55]} 17. Rfd1 {[%clk 0:40:35]} 17... Nce5 {[%clk
0:25:39]} 18. a6 {[%clk 0:34:16]} 18... b6 {[%clk 0:23:59]} 19. f4 {[%clk
0:34:03]} 19... gxf4 {[%clk 0:21:58]} 20. gxf4 {[%clk 0:34:21]} 20... Ng6 {[%clk
0:18:23]} 21. e5 {[%clk 0:33:10]} 21... Nh4 {[%clk 0:15:01]} 22. Bb7+ {[%clk
0:28:54]} 22... Kb8 {[%clk 0:15:19]} 23. Bf2 {[%clk 0:23:27]} 23... Rhg8+ {[%clk
0:12:31]} 24. Kh1 {[%clk 0:23:05]} 24... Nf5 {[%clk 0:10:45]} 25. Qb5 {[%clk
0:17:18]} 25... Nxe5 {[%clk 0:03:53]} 26. fxe5 {[%clk 0:14:39]} 26... Qxe5
{[%clk 0:03:56]} 27. Na5 {[%clk 0:10:24]} 27... Ng3+ {[%clk 0:02:19]} 28. Bxg3
{[%clk 0:10:47]} 28... Qxg3 {[%clk 0:02:32]} 29. Nc6+ {[%clk 0:01:02]} 29... Kc7
{[%clk 0:02:50]} 30. Qf1 {[%clk 0:01:11]} 30... Bd6 {[%clk 0:01:16]} 31. Rd2
{[%clk 0:00:40]} 31... Bf4 {[%clk 0:00:45]} 32. Nxd8 Bxd2 {[%clk 0:00:52]} 33.
Nxf7 {[%clk 0:00:35]} 33... Qe3 {[%clk 0:00:37]} 34. Nh6 {[%clk 0:00:32]} 34...
Rg3 {[%clk 0:00:42]} 35. Qf7+ {[%clk 0:00:37]} 35... Kd6 {[%clk 0:00:49]} 36.
Qf8+ {[%clk 0:01:02]} 36... Kd7 {[%clk 0:00:51]} 37. Qc8+ {[%clk 0:01:04]} 37...
Ke7 {[%clk 0:01:03]} 38. Qc7+ {[%clk 0:01:00]} 38... Kf6 {[%clk 0:00:56]} 39.
Rf1+ {[%clk 0:00:54]} 39... Kg5 {[%clk 0:01:09]} 40. Nf7+ {[%clk 0:00:34]} 40...
Kg6 {[%clk 0:01:00]} 41. Be4+ {[%clk 0:00:40]} 41... Qxe4+ {[%clk 0:00:48]} 42.
Kh2 {[%clk 0:00:55]} 42... Qg2# {[%clk 0:01:12]} 0-1

[Variant "Standard"]
[Site "Europe Echecs"]